fUST/lending_fUST_20240825
["ID","MTS","AMOUNT","RATE_DAILY","PERIOD"]
[335844029,1724530250284,-500.0,0.00013972,2]
[335844030,1724530250294,-500.0,0.00013972,2]
[335844031,1724530250304,-500.0,0.00013972,2]
[335844032,1724530250313,-500.0,0.00013972,2]
[335844033,1724530250325,-765.31,0.00013972,2]
[335844034,1724530250335,-500.0,0.00013972,2]
[335844035,1724530250345,-500.0,0.00013972,2]
[335844036,1724530250358,-556.19,0.00013972,2]
[335844037,1724530250370,-500.0,0.00013972,2]
[335844038,1724530250381,-501.33411364,0.00013972,2]
[335844039,1724530250391,-500.0,0.00013972,2]
[335844040,1724530250401,-681.74,0.00013972,2]
[335844041,1724530250410,-800.24,0.00013972,2]
[335844042,1724530250423,-500.0,0.00013972,2]
[335844043,1724530250432,-500.0,0.00013972,2]
[335844044,1724530250441,-500.0,0.00013972,2]
[335844045,1724530250451,-500.0,0.00013972,2]
[335844046,1724530250460,-500.0,0.00013972,2]
[335844047,1724530250469,-500.0,0.00013972,2]
[335844048,1724530250478,-235.75516497,0.00013972,2]
[335844049,1724530250488,-500.0,0.00013972,2]
[335844050,1724530250498,-585.51,0.00013972,2]
[335844051,1724530250507,-399.82,0.00013972,2]
[335844052,1724530250518,-664.55,0.00013972,2]
[335844053,1724530250529,-500.0,0.00013972,2]
[335844054,1724530250539,-500.0,0.00013972,2]
[335844055,1724530250550,-500.0,0.00013972,2]
[335844056,1724530250561,-500.0,0.00013972,2]
[335844057,1724530250571,-541.6009792,0.00013972,2]
[335844058,1724530250583,-572.18,0.00013972,2]
[335844059,1724530250594,-500.0,0.00013972,2]
[335844060,1724530250606,-652.42,0.00013972,2]
[335844061,1724530250616,-707.4,0.00013972,2]
[335844062,1724530250630,-500.0,0.00013972,2]
[335844063,1724530250640,-500.0,0.00013972,2]
[335844064,1724530250652,-500.0,0.00013972,2]
[335844065,1724530250665,-500.0,0.00013972,2]
[335844066,1724530250675,-500.0,0.00013972,2]
[335844067,1724530250685,-500.0,0.00013972,2]
[335844068,1724530250695,-500.0,0.00013972,2]
[335844069,1724530250705,-500.0,0.00013972,2]
[335844070,1724530250715,-533.48,0.00013972,2]
[335844071,1724530250725,-500.0,0.00013972,2]
[335844072,1724530250738,-500.0,0.00013972,2]
[335844073,1724530250749,-500.0,0.00013972,2]
[335844074,1724530250759,-500.0,0.00013972,2]
[335844075,1724530250769,-500.0,0.00013972,2]
[335844076,1724530250778,-500.0,0.00013972,2]
[335844077,1724530250788,-622.15,0.00013972,2]
[335844078,1724530250798,-500.0,0.00013972,2]
[335844079,1724530250808,-500.0,0.00013972,2]
[335844080,1724530250817,-500.0,0.00013972,2]
[335844081,1724530250828,-500.0,0.00013972,2]
[335844082,1724530250837,-500.0,0.00013972,2]
[335844083,1724530250847,-500.0,0.00013972,2]
[335844084,1724530250857,-500.0,0.00013972,2]
[335844085,1724530250867,-500.0,0.00013972,2]
[335844086,1724530250877,-500.0,0.00013972,2]
[335844087,1724530250887,-156.06103537,0.00013972,2]
[335844088,1724530250896,-500.0,0.00013972,2]
[335844089,1724530250906,-2000.51,0.00013972,2]
[335844090,1724530250918,-500.0,0.00013972,2]
[335844091,1724530250928,-500.0,0.00013972,2]
[335844092,1724530250939,-500.0,0.00013972,2]
[335844093,1724530250949,-500.0,0.00013972,2]
[335844094,1724530250959,-500.0,0.00013972,2]
[335844095,1724530250969,-716.22,0.00013972,2]
[335844096,1724530251141,-500.0,0.00013972,2]
[335844097,1724530251150,-619.0,0.00013972,2]
[335844098,1724530251161,-500.0,0.00013972,2]
[335844099,1724530251171,-269.97377217,0.00013972,2]
[335844100,1724530251181,-500.0,0.00013972,2]
[335844101,1724530251190,-500.0,0.00013972,2]
[335844102,1724530251200,-500.0,0.00013972,2]
[335844103,1724530251210,-500.0,0.00013972,2]
[335844104,1724530251221,-500.0,0.00013972,2]
[335844105,1724530251231,-500.0,0.00013972,2]
[335844106,1724530251241,-500.0,0.00013972,2]
[335844107,1724530251252,-801.05,0.00013972,2]
[335844108,1724530251263,-500.0,0.00013972,2]
[335844109,1724530251273,-425.58365,0.00013972,2]
[335844110,1724530251282,-500.0,0.00013972,2]
[335844111,1724530251292,-425.58365,0.00013972,2]
[335844112,1724530251302,-500.0,0.00013972,2]
[335844113,1724530251311,-425.58365,0.00013972,2]
[335844114,1724530251321,-425.58366,0.00013972,2]
[335844115,1724530251330,-500.0,0.00013972,2]
[335844116,1724530251340,-500.0,0.00013972,2]
[335844117,1724530251350,-500.0,0.00013972,2]
[335844118,1724530251360,-500.0,0.00013972,2]
[335844119,1724530251370,-500.0,0.00013972,2]
[335844120,1724530251381,-500.0,0.00013972,2]
[335844121,1724530251391,-500.0,0.00013972,2]
[335844122,1724530251400,-500.0,0.00013972,2]
[335844123,1724530251410,-500.0,0.00013972,2]
[335844124,1724530251419,-500.0,0.00013972,2]
[335844125,1724530251429,-763.21,0.00013972,2]
[335844126,1724530251439,-783.39,0.00013972,2]
[335844127,1724530251448,-678.6,0.00013972,2]
[335844128,1724530251458,-500.0,0.00013972,2]
[335844129,1724530251468,-574.59,0.00013972,2]
[335844130,1724530251478,-500.0,0.00013972,2]
[335844131,1724530251487,-254.72922386,0.00013972,2]
[335844132,1724530251496,-500.0,0.00013972,2]
[335844133,1724530251505,-1086.62,0.00013972,2]
[335844134,1724530251514,-689.38,0.00013972,2]
[335844135,1724530251524,-1259.33,0.00013972,2]
[335844136,1724530251533,-456.7940498,0.00013972,2]
[335844137,1724530251543,-500.0,0.00013972,2]
[335844138,1724530251553,-646.54,0.00013972,2]
[335844139,1724530251562,-500.0,0.00013972,2]
[335844140,1724530251572,-676.35,0.00013972,2]
[335844141,1724530251581,-500.0,0.00013972,2]
[335844142,1724530251591,-657.86,0.00013972,2]
[335844143,1724530251601,-500.0,0.00013972,2]
[335844144,1724530251610,-500.0,0.00013972,2]
[335844145,1724530251621,-982.85,0.00013972,2]
[335844146,1724530251632,-1494.61,0.00013972,2]
[335844147,1724530251643,-500.0,0.00013972,2]
[335844148,1724530251654,-332.92760639,0.00013972,2]
[335844149,1724530251666,-500.0,0.00013972,2]
[335844150,1724530251676,-500.0,0.00013972,2]
[335844151,1724530251685,-3067.3,0.00013972,2]
[335844152,1724530251694,-674.86,0.00013972,2]
[335844153,1724530251704,-500.0,0.00013972,2]
[335844154,1724530251713,-500.0,0.00013972,2]
[335844155,1724530251723,-500.0,0.00013972,2]
[335844156,1724530251734,-500.0,0.00013972,2]
[335844157,1724530251744,-566.9,0.00013972,2]
[335844158,1724530251753,-500.0,0.00013972,2]
[335844159,1724530251763,-756.6,0.00013972,2]
[335844160,1724530251772,-500.0,0.00013972,2]
[335844161,1724530251781,-500.0,0.00013972,2]
[335844162,1724530251791,-801.17,0.00013972,2]
[335844163,1724530251800,-500.0,0.00013972,2]
[335844164,1724530251809,-500.0,0.00013972,2]
[335844165,1724530251820,-500.0,0.00013972,2]
[335844166,1724530251830,-150.0,0.00013972,2]
[335844167,1724530251840,-502.22533345,0.00013972,2]
[335844168,1724530251849,-500.0,0.00013972,2]
[335844169,1724530251858,-500.0,0.00013972,2]
[335844170,1724530251869,-500.0,0.00013972,2]
[335844171,1724530251883,-500.0,0.00013972,2]
[335844172,1724530251893,-500.0,0.00013972,2]
[335844173,1724530251903,-500.0,0.00013972,2]
[335844174,1724530251913,-834.48,0.00013972,2]
[335844175,1724530251923,-500.0,0.00013972,2]
[335844176,1724530251935,-500.0,0.00013972,2]
[335844177,1724530251945,-320.79554636,0.00013972,2]
[335844178,1724530251956,-500.0,0.00013972,2]
[335844179,1724530251967,-500.0,0.00013972,2]
[335844180,1724530251976,-500.0,0.00013972,2]
[335844181,1724530251985,-930.76,0.00013972,2]
[335844182,1724530251995,-657.38,0.00013972,2]
[335844183,1724530252005,-500.0,0.00013972,2]
[335844184,1724530252014,-603.96,0.00013972,2]
[335844185,1724530252024,-500.0,0.00013972,2]
[335844186,1724530252033,-522.31,0.00013972,2]
[335844187,1724530252043,-500.97004959,0.00013972,2]
[335844188,1724530252055,-169.46222102,0.00013972,2]
[335844189,1724530252065,-500.0,0.00013972,2]
[335844190,1724530252074,-500.0,0.00013972,2]
[335844191,1724530252084,-500.0,0.00013972,2]
[335844192,1724530252093,-500.0,0.00013972,2]
[335844193,1724530252103,-619.99,0.00013972,2]
[335844194,1724530252112,-500.0,0.00013972,2]
[335844195,1724530252121,-653.29,0.00013972,2]
[335844196,1724530252133,-590.64,0.00013972,2]
[335844197,1724530252143,-1981.92,0.00013972,2]
[335844198,1724530252152,-500.0,0.00013972,2]
[335844199,1724530252162,-500.0,0.00013972,2]
[335844200,1724530252171,-500.0,0.00013972,2]
[335844201,1724530252180,-381.29143975,0.00013972,2]
[335844202,1724530252190,-500.0,0.00013972,2]
[335844203,1724530252199,-1041.54,0.00013972,2]
[335844204,1724530252209,-553.29,0.00013972,2]
[335844205,1724530252219,-500.0,0.00013972,2]
[335844206,1724530252228,-500.0,0.00013972,2]
[335844207,1724530252238,-500.0,0.00013972,2]
[335844208,1724530252247,-500.0,0.00013972,2]
[335844209,1724530252256,-2532.97,0.00013972,2]
[335844210,1724530252266,-840.8,0.00013972,2]
[335844211,1724530252276,-851.81,0.00013972,2]
[335844212,1724530252285,-930.45,0.00013972,2]
[335844213,1724530252295,-562.57,0.00013972,2]
[335844214,1724530252304,-500.0,0.00013972,2]
[335844215,1724530252314,-500.0,0.00013972,2]
[335844216,1724530252323,-500.0,0.00013972,2]
[335844217,1724530252333,-1168.22,0.00013972,2]
[335844218,1724530252342,-325.22299602,0.00013972,2]
[335844219,1724530252352,-500.0,0.00013972,2]
[335844220,1724530252362,-255.02287104,0.00013972,2]
[335844221,1724530252371,-1377.42,0.00013972,2]
[335844222,1724530252382,-500.0,0.00013972,2]
[335844223,1724530252392,-546.67,0.00013972,2]
[335844224,1724530252401,-500.0,0.00013972,2]
[335844225,1724530252411,-990.53,0.00013972,2]
[335844226,1724530252420,-1453.04,0.00013972,2]
[335844227,1724530252429,-583.68,0.00013972,2]
[335844228,1724530252439,-524.29,0.00013972,2]
[335844229,1724530252449,-557.09,0.00013972,2]
[335844230,1724530252459,-1004.5,0.00013972,2]
[335844231,1724530252468,-500.0,0.00013972,2]
[335844232,1724530252478,-530.01,0.00013972,2]
[335844233,1724530252487,-500.0,0.00013972,2]
[335844234,1724530252496,-500.0,0.00013972,2]
[335844235,1724530252506,-171.34146714,0.00013972,2]
[335844236,1724530252515,-500.0,0.00013972,2]
[335844237,1724530252525,-842.24,0.00013972,2]
[335844238,1724530252535,-901.51,0.00013972,2]
[335844239,1724530252544,-611.67,0.00013972,2]
[335844240,1724530252553,-934.66,0.00013972,2]
[335844241,1724530252563,-479.10856881,0.00013972,2]
[335844242,1724530252572,-500.0,0.00013972,2]
[335844243,1724530252581,-1424.34,0.00013972,2]
[335844244,1724530252591,-588.09,0.00013972,2]
[335844245,1724530252601,-2391.04,0.00013972,2]
[335844246,1724530252612,-500.0,0.00013972,2]
[335844247,1724530252622,-611.07,0.00013972,2]
[335844248,1724530252633,-500.0,0.00013972,2]
[335844249,1724530252644,-1277.17,0.00013972,2]
[335844250,1724530252657,-528.89703073,0.00013972,2]
[335844251,1724530252668,-994.03,0.00013972,2]
[335844252,1724530252680,-500.0,0.00013972,2]
[335844253,1724530252690,-609.33,0.00013972,2]
[335844254,1724530252703,-500.0,0.00013972,2]
[335844255,1724530252716,-500.0,0.00013972,2]
[335844256,1724530252727,-586.91,0.00013972,2]
[335844257,1724530252739,-594.56,0.00013972,2]
[335844258,1724530252750,-500.0,0.00013972,2]
[335844259,1724530252761,-962.18,0.00013972,2]
[335844260,1724530252770,-500.0,0.00013972,2]
[335844261,1724530252779,-608.51,0.00013972,2]
[335844262,1724530252791,-1079.11,0.00013972,2]
[335844263,1724530252801,-500.0,0.00013972,2]
[335844264,1724530252811,-500.0,0.00013972,2]
[335844265,1724530252822,-889.94,0.00013972,2]
[335844266,1724530252833,-500.0,0.00013972,2]
[335844267,1724530252844,-628.11,0.00013972,2]
[335844268,1724530252855,-835.62,0.00013972,2]
[335844269,1724530252866,-500.0,0.00013972,2]
[335844270,1724530252875,-500.0,0.00013972,2]
[335844271,1724530252885,-1136.81,0.00013972,2]
[335844272,1724530252896,-500.0,0.00013972,2]
[335844273,1724530252905,-500.0,0.00013972,2]
[335844274,1724530252914,-887.04,0.00013972,2]
[335844275,1724530252923,-737.66,0.00013972,2]
[335844276,1724530252932,-500.0,0.00013972,2]
[335844277,1724530252941,-500.0,0.00013972,2]
[335844278,1724530252950,-500.0,0.00013972,2]
[335844279,1724530252959,-500.0,0.00013972,2]
[335844280,1724530252969,-852.44,0.00013972,2]
[335844281,1724530252979,-1201.27,0.00013972,2]
[335844282,1724530252988,-500.0,0.00013972,2]
[335844283,1724530252998,-2755.3,0.00013972,2]
[335844284,1724530253007,-471.91304335,0.00013972,2]
[335844285,1724530253016,-764.01,0.00013972,2]
[335844286,1724530253026,-500.0,0.00013972,2]
[335844287,1724530253034,-1313.2,0.00013972,2]
[335844288,1724530253044,-859.33,0.00013972,2]
[335844289,1724530253054,-500.0,0.00013972,2]
[335844290,1724530253063,-718.39,0.00013972,2]
[335844291,1724530253072,-504.40741702,0.00013972,2]
[335844292,1724530253081,-542.81,0.00013972,2]
[335844293,1724530253091,-934.98,0.00013972,2]
[335844294,1724530253102,-1106.51,0.00013972,2]
[335844295,1724530253112,-601.84,0.00013972,2]
[335844296,1724530253123,-500.0,0.00013972,2]
[335844297,1724530253134,-500.0,0.00013972,2]
[335844298,1724530253147,-510.76,0.00013972,2]
[335844299,1724530253157,-738.66,0.00013972,2]
[335844300,1724530253167,-500.0,0.00013972,2]
[335844301,1724530253176,-500.0,0.00013972,2]
[335844302,1724530253185,-1409.66,0.00013972,2]
[335844303,1724530253194,-500.0,0.00013972,2]
[335844304,1724530253203,-500.0,0.00013972,2]
[335844305,1724530253213,-500.0,0.00013972,2]
[335844306,1724530253222,-500.0,0.00013972,2]
[335844307,1724530253231,-500.0,0.00013972,2]
[335844308,1724530253240,-500.0,0.00013972,2]
[335844309,1724530253249,-501.24214852,0.00013972,2]
[335844310,1724530253258,-1157.83,0.00013972,2]
[335844311,1724530253267,-1909.11,0.00013972,2]
[335844312,1724530253277,-500.0,0.00013972,2]
[335844313,1724530253287,-500.0,0.00013972,2]
[335844314,1724530253296,-654.2,0.00013972,2]
[335844315,1724530253305,-500.0,0.00013972,2]
[335844316,1724530253314,-500.0,0.00013972,2]
[335844317,1724530253324,-500.0,0.00013972,2]
[335844318,1724530253333,-500.0,0.00013972,2]
[335844319,1724530253343,-452.05430529,0.00013972,2]
[335844320,1724530253352,-1421.81,0.00013972,2]
[335844321,1724530253361,-500.0,0.00013972,2]
[335844322,1724530253371,-500.0,0.00013972,2]
[335844323,1724530253382,-500.0,0.00013972,2]
[335844324,1724530253391,-1361.11,0.00013972,2]
[335844325,1724530253400,-500.0,0.00013972,2]
[335844326,1724530253410,-500.0,0.00013972,2]
[335844327,1724530253421,-1173.12,0.00013972,2]
[335844328,1724530253432,-785.18,0.00013972,2]
[335844329,1724530253442,-500.0,0.00013972,2]
[335844330,1724530253452,-500.0,0.00013972,2]
[335844331,1724530253463,-500.0,0.00013972,2]
[335844332,1724530253472,-780.67,0.00013972,2]
[335844333,1724530253482,-500.0,0.00013972,2]
[335844334,1724530253492,-500.0,0.00013972,2]
[335844335,1724530253503,-500.0,0.00013972,2]
[335844336,1724530253514,-500.0,0.00013972,2]
[335844337,1724530253524,-500.0,0.00013972,2]
[335844338,1724530253534,-500.0,0.00013972,2]
[335844339,1724530253544,-250.89,0.00013972,2]
[335844340,1724530253555,-549.71,0.00013972,2]
[335844341,1724530253564,-1730.21,0.00013972,2]
[335844342,1724530253573,-500.0,0.00013972,2]
[335844343,1724530253582,-500.0,0.00013972,2]
[335844344,1724530253592,-500.0,0.00013972,2]
[335844345,1724530253603,-1187.82,0.00013972,2]
[335844346,1724530253616,-194.23880932,0.00013972,2]
[335844347,1724530253629,-500.0,0.00013972,2]
[335844348,1724530253640,-500.0,0.00013972,2]
[335844349,1724530253651,-500.0,0.00013972,2]
[335844350,1724530253662,-500.0,0.00013972,2]
[335844351,1724530253673,-557.51,0.00013972,2]
[335844352,1724530253682,-500.0,0.00013972,2]
[335844353,1724530253691,-500.0,0.00013972,2]
[335844354,1724530253701,-698.64,0.00013972,2]
[335844355,1724530253710,-727.51,0.00013972,2]
[335844356,1724530253719,-677.42,0.00013972,2]
[335844357,1724530253731,-1132.62,0.00013972,2]
[335844358,1724530253740,-500.0,0.00013972,2]
[335844359,1724530253749,-500.0,0.00013972,2]
[335844360,1724530253759,-967.15,0.00013972,2]
[335844361,1724530253769,-533.9444381,0.00013972,2]
[335844362,1724530253777,-500.0,0.00013972,2]
[335844363,1724530253786,-500.0,0.00013972,2]
[335844364,1724530253795,-500.0,0.00013972,2]
[335844365,1724530253805,-500.0,0.00013972,2]
[335844366,1724530253815,-840.37,0.00013972,2]
[335844367,1724530253827,-500.0,0.00013972,2]
[335844368,1724530253837,-1135.58,0.00013972,2]
[335844369,1724530253848,-746.68,0.00013972,2]
[335844370,1724530253859,-998.06,0.00013972,2]
[335844371,1724530253868,-500.0,0.00013972,2]
[335844372,1724530253878,-553.87,0.00013972,2]
[335844373,1724530253896,-500.0,0.00013972,2]
[335844374,1724530253905,-500.0,0.00013972,2]
[335844375,1724530253914,-500.0,0.00013972,2]
[335844376,1724530253923,-594.73,0.00013972,2]
[335844377,1724530253932,-885.76,0.00013972,2]
[335844378,1724530253941,-500.0,0.00013972,2]
[335844379,1724530253950,-607.84,0.00013972,2]
[335844380,1724530253960,-500.0,0.00013972,2]
[335844381,1724530253975,-500.0,0.00013972,2]
[335844382,1724530253984,-500.0,0.00013972,2]
[335844383,1724530253994,-737.25,0.00013972,2]
[335844384,1724530254005,-575.95,0.00013972,2]
[335844385,1724530254015,-815.61,0.00013972,2]
[335844386,1724530254025,-1233.15,0.00013972,2]
[335844387,1724530254034,-666.89,0.00013972,2]
[335844388,1724530254043,-835.0,0.00013972,2]
[335844389,1724530254054,-564.57,0.00013972,2]
[335844390,1724530254063,-500.0,0.00013972,2]
[335844391,1724530254073,-2062.88,0.00013972,2]
[335844392,1724530254082,-500.0,0.00013972,2]
[335844393,1724530254092,-500.0,0.00013972,2]
[335844394,1724530254101,-500.0,0.00013972,2]
[335844395,1724530254110,-500.0,0.00013972,2]
[335844396,1724530254120,-500.0,0.00013972,2]
[335844397,1724530254131,-674.42,0.00013972,2]
[335844398,1724530254141,-857.13,0.00013972,2]
[335844399,1724530254150,-1421.55,0.00013972,2]
[335844400,1724530254159,-500.0,0.00013972,2]
[335844401,1724530254168,-1286.0,0.00013972,2]
[335844402,1724530254177,-513.0423722,0.00013972,2]
[335844403,1724530254186,-500.0,0.00013972,2]
[335844404,1724530254196,-500.0,0.00013972,2]
[335844405,1724530254205,-500.0,0.00013972,2]
[335844406,1724530254214,-500.0,0.00013972,2]
[335844407,1724530254223,-500.0,0.00013972,2]
[335844408,1724530254233,-500.0,0.00013972,2]
[335844409,1724530254242,-1107.02,0.00013972,2]
[335844410,1724530254252,-12106.29,0.00013972,2]
[335844411,1724530254262,-1000.0,0.00013972,2]
[335844412,1724530254271,-299.86517533,0.00013972,2]
[335844413,1724530254280,-500.0,0.00013972,2]
[335844414,1724530254289,-2073.91,0.00013972,2]
[335844415,1724530254298,-1381.62,0.00013972,2]
[335844416,1724530254307,-500.0,0.00013972,2]
[335844417,1724530254317,-1654.57,0.00013972,2]
[335844418,1724530254326,-500.0,0.00013972,2]
[335844419,1724530254335,-500.0,0.00013972,2]
[335844420,1724530254344,-500.0,0.00013972,2]
[335844421,1724530254353,-5386.28,0.00013972,2]
[335844422,1724530254362,-500.0,0.00013972,2]
[335844423,1724530254372,-6697.31,0.00013972,2]
[335844424,1724530254383,-1998.96,0.00013972,2]
[335844425,1724530254392,-500.0,0.00013972,2]
[335844426,1724530254402,-500.0,0.00013972,2]
[335844427,1724530254411,-652.22,0.00013972,2]
[335844428,1724530254420,-500.0,0.00013972,2]
[335844429,1724530254429,-984.89,0.00013972,2]
[335844430,1724530254439,-500.0,0.00013972,2]
[335844431,1724530254448,-500.0,0.00013972,2]
[335844432,1724530254457,-500.0,0.00013972,2]
[335844433,1724530254467,-716.15,0.00013972,2]
[335844434,1724530254476,-500.0,0.00013972,2]
[335844435,1724530254485,-2215.67,0.00013972,2]
[335844436,1724530254495,-3215.16,0.00013972,2]
[335844437,1724530254505,-500.0,0.00013972,2]
[335844438,1724530254515,-1119.73,0.00013972,2]
[335844439,1724530254524,-619.65773544,0.00013972,2]
[335844440,1724530254533,-500.0,0.00013972,2]
[335844441,1724530254542,-500.0,0.00013972,2]
[335844442,1724530254552,-500.0,0.00013972,2]
[335844443,1724530254561,-500.0,0.00013972,2]
[335844444,1724530254571,-500.0,0.00013972,2]
[335844445,1724530254580,-3352.92,0.00013972,2]
[335844446,1724530254589,-872.09,0.00013972,2]
[335844447,1724530254599,-508.68833882,0.00013972,2]
[335844448,1724530254608,-829.15,0.00013972,2]
[335844449,1724530254617,-500.0,0.00013972,2]
[335844450,1724530254627,-521.87,0.00013972,2]
[335844451,1724530254636,-500.0,0.00013972,2]
[335844452,1724530254646,-500.0,0.00013972,2]
[335844453,1724530254822,-500.0,0.00013972,2]
[335844454,1724530254832,-2196.01,0.00013972,2]
[335844455,1724530254842,-500.0,0.00013972,2]
[335844456,1724530254851,-500.0,0.00013972,2]
[335844457,1724530254860,-1703.02,0.00013972,2]
[335844458,1724530254869,-499.35084383,0.00013972,2]
[335844459,1724530254879,-1318.45,0.00013972,2]
[335844460,1724530254889,-500.0,0.00013972,2]
[335844461,1724530254898,-795.6,0.00013972,2]
[335844462,1724530254907,-500.0,0.00013972,2]
[335844463,1724530254917,-1862.71,0.00013972,2]
[335844464,1724530254927,-940.6,0.00013972,2]
[335844465,1724530254936,-640.01,0.00013972,2]
[335844466,1724530254945,-1309.44,0.00013972,2]
[335844467,1724530254955,-500.0,0.00013972,2]
[335844468,1724530254964,-3191.55,0.00013972,2]
[335844469,1724530254975,-903.54,0.00013972,2]
[335844470,1724530254984,-500.0,0.00013972,2]
[335844471,1724530254994,-3485.97,0.00013972,2]
[335844472,1724530255004,-1684.5,0.00013972,2]
[335844473,1724530255013,-2613.14,0.00013972,2]
[335844474,1724530255022,-8200.29,0.00013972,2]
[335844475,1724530255032,-500.0,0.00013972,2]
[335844476,1724530255041,-500.0,0.00013972,2]
[335844477,1724530255051,-2951.8,0.00013972,2]
[335844478,1724530255060,-500.0,0.00013972,2]
[335844479,1724530255069,-640.23,0.00013972,2]
[335844480,1724530255078,-500.0,0.00013972,2]
[335844481,1724530255087,-923.43,0.00013972,2]
[335844482,1724530255096,-5370.01,0.00013972,2]
[335844483,1724530255105,-903.49,0.00013972,2]
[335844484,1724530255114,-770.87,0.00013972,2]
[335844485,1724530255123,-500.0,0.00013972,2]
[335844486,1724530255133,-500.0,0.00013972,2]
[335844487,1724530255142,-1275.7,0.00013972,2]
[335844488,1724530255151,-500.0,0.00013972,2]
[335844489,1724530255160,-500.0,0.00013972,2]
[335844490,1724530255171,-500.0,0.00013972,2]
[335844491,1724530255180,-11182.04,0.00013972,2]
[335844492,1724530255190,-8131.13,0.00013972,2]
[335844493,1724530255199,-500.0,0.00013972,2]
[335844494,1724530255209,-615.76,0.00013972,2]
[335844495,1724530255218,-689.6,0.00013972,2]
[335844496,1724530255228,-659.83,0.00013972,2]
[335844497,1724530255238,-500.0,0.00013972,2]
[335844498,1724530255247,-665.7,0.00013972,2]
[335844499,1724530255257,-349.22332374,0.00013972,2]
[335844500,1724530255266,-500.0,0.00013972,2]
[335844501,1724530255275,-500.0,0.00013972,2]
[335844502,1724530255285,-23010.55,0.00013972,2]
[335844503,1724530255295,-1010.88,0.00013972,2]
[335844504,1724530255304,-500.0,0.00013972,2]
[335844505,1724530255313,-500.0,0.00013972,2]
[335844506,1724530255322,-1071.81,0.00013972,2]
[335844507,1724530255332,-853.54,0.00013972,2]
[335844508,1724530255341,-500.0,0.00013972,2]
[335844509,1724530255351,-1919.5,0.00013972,2]
[335844510,1724530255361,-760.45,0.00013972,2]
[335844511,1724530255370,-837.27,0.00013972,2]
[335844512,1724530255380,-4250.9,0.00013972,2]
[335844513,1724530255390,-500.0,0.00013972,2]
[335844514,1724530255399,-859.67,0.00013972,2]
[335844515,1724530255409,-787.39,0.00013972,2]
[335844516,1724530255418,-460.90329575,0.00013972,2]
[335844517,1724530255428,-500.0,0.00013972,2]
[335844518,1724530255438,-2327.31,0.00013972,2]
[335844519,1724530255447,-508.11655359,0.00013972,2]
[335844520,1724530255456,-1350.87,0.00013972,2]
[335844521,1724530255466,-5473.16,0.00013972,2]
[335844522,1724530255477,-1005.4,0.00013972,2]
[335844523,1724530255487,-513.5,0.00013972,2]
[335844524,1724530255496,-3044.18,0.00013972,2]
[335844525,1724530255507,-500.0,0.00013972,2]
[335844526,1724530255516,-520.17,0.00013972,2]
[335844527,1724530255525,-2216.83,0.00013972,2]
[335844528,1724530255535,-500.0,0.00013972,2]